Cogmind - Beta 15 @@@ ROGUE MODE // 2025.10.05 @ 15:07:57 Player: winnking222 Result: Destroyed by AG-35641 with Assembled Focal Cannon Performance ------------- Evolutions (3) 1500 Regions Visited (12) 2400 Robots Destroyed (218) 1090 Value Destroyed (7526) 7526 Prototype IDs (61) 1220 Alien Tech Used (0) 0 Bonus (2666) 2666 TOTAL SCORE: 16402 Bonus ------- High Alert Combat Kills 999 Follower Combat Kills 381 Aligned with FarCom 300 Met Imprinter 300 Was Imprinted 300 Destroyed Z-Imprinter 1000 Friendly Fire -614 Cogmind --------- Core Integrity 0/700 Matter 275/300 Energy 254/290 System Corruption 0% Temperature Warm (190) Movement Walking (285) Ox2 Location -7/Deep Caves Parts ------- > --- POWER (2) -------- Improved Deuterium Engine Zionite Light DM Reactor > --- PROPULSION (2) --- Zionite Composite Leg I Enhanced Flexi-carbon Leg > --- UTILITY (5) ------ Experimental Heat Sink Huge Storage Unit Zionite Light Carapace Zionite Light Carapace Layered Medium Armor Plating > --- WEAPON (4) ------- Heavy EM Shotgun Heavy EM Shotgun Zionite Laser-S > --- INVENTORY (25) --- Zionite Light DM Reactor Armored Treads Medium Treads Carbon-fiber Leg Zionite Composite Leg I Enhanced Flexi-carbon Leg Experimental Heat Sink High-capacity Storage Unit High-capacity Matter Pod (200) Enhanced Optical Array Advanced Weapon Cycler Improved Reaction Control System Hardened Light Armor Plating Trap Reconfigurator Thief Drone Bay (1/3) Hacking Drone Bay AS-neutralizer No. 17b Zionite Laser-M Autogun Flak Gun Proton Missile Launcher Plasma Cutter Peak State ------------ > --- POWER ------------ Improved Deuterium Engine Zionite Light DM Reactor > --- PROPULSION ------- Zionite Composite Leg I Enhanced Flexi-carbon Leg > --- UTILITY ---------- Experimental Heat Sink Experimental Heat Sink Huge Storage Unit Improved Reaction Control System Layered Medium Armor Plating > --- WEAPON ----------- Heavy EM Shotgun Heavy EM Shotgun Zionite Laser-S Zionite Laser-M > --- INVENTORY -------- Armored Treads Medium Treads Carbon-fiber Leg Enhanced Flexi-carbon Leg Experimental Heat Sink High-capacity Storage Unit High-capacity Matter Pod Enhanced Optical Array Advanced Weapon Cycler Hardened Light Armor Plating Trap Reconfigurator Thief Drone Bay Hacking Drone Bay AS-neutralizer No. 17b Heavy EM Shotgun Lightning Gun Precision Shock Rifle Precision Shock Rifle Field Laser Makeshift Laser Autogun Autogun Flak Gun Proton Missile Launcher Plasma Cutter [Rating: 83] Favorites ----------- Power Light Nuclear Core Engine Improved Deuterium Engine Power Core Light Nuclear Core Reactor Zionite Light DM Reactor Propulsion Advanced Treads Treads Advanced Treads Leg Advanced Myomer Leg Wheel Wheel Utility Huge Storage Unit Device Experimental Heat Sink Storage Huge Storage Unit Processor Improved Signal Interpreter Hackware Hacking Suite Protection Hardened Light Armor Plating Weapon XL Autogun Subcomponent Energy Gun Beamcaster Energy Cannon Advanced Beam Cannon Ballistic Gun XL Autogun Subcomponent Launcher Rocket Launcher Special Weapon Plasma Cutter Special Melee Weapon Datajack Build | -11 -10 -10 -9 -9 -9 -8 -8 -7 -7 -7 -7 -7 ------- Run | Yrd Mat Min Mat Min Exi Min Mat Fac Low Low Zio Dee Slots Evolved 6 | . . . 2 . . . 2 2 . . . . Power 1 | . . . . . . . . 1 . . . . Propulsion . | . . . . . . . . . . . . . Utility 3 | . . . 1 . . . 1 1 . . . . Weapon 2 | . . . 1 . . . 1 . . . . . Parts Attached 148 | 7 7 4 26 10 8 2 18 30 9 2 9 16 Power 18 | 1 1 1 2 1 . . 2 7 2 . . 1 Engine 11 | 1 1 . 2 . . . 2 3 2 . . . Core 6 | . . 1 . 1 . . . 4 . . . . Reactor 1 | . . . . . . . . . . . . 1 Propulsion 28 | 2 . 2 10 2 1 2 1 6 . . . 2 Treads 19 | . . . 9 2 1 1 1 5 . . . . Leg 8 | 2 . 2 . . . 1 . 1 . . . 2 Wheel 1 | . . . 1 . . . . . . . . . Hover . | . . . . . . . . . . . . . Flight . | . . . . . . . . . . . . . Utility 50 | 2 2 . 5 4 1 . 7 11 2 1 6 9 Device 16 | 1 . . . 2 . . 3 6 . 1 . 3 Storage 5 | 1 2 . 1 . . . . . . . . 1 Processor 7 | . . . . . . . 1 1 . . 5 . Hackware 1 | . . . 1 . . . . . . . . . Protection 21 | . . . 3 2 1 . 3 4 2 . 1 5 Artifact . | . . . . . . . . . . . . . Weapon 52 | 2 4 1 9 3 6 . 8 6 5 1 3 4 Energy Gun 21 | 2 3 1 1 . 1 . 2 2 4 1 . 4 Energy Cannon 2 | . . . 1 . . . 1 . . . . . Ballistic Gun 24 | . 1 . 7 3 2 . 5 3 1 . 2 . Ballistic Cannon . | . . . . . . . . . . . . . Launcher 3 | . . . . . 2 . . 1 . . . . Special Weapon 1 | . . . . . . . . . . . 1 . Impact Weapon . | . . . . . . . . . . . . . Slashing Weapon . | . . . . . . . . . . . . . Piercing Weapon . | . . . . . . . . . . . . . Special Melee Weapon 1 | . . . . . 1 . . . . . . . Unidentified Prototypes 22 | . . . 2 1 . . 4 1 . . 5 9 Corrupted Parts 2 | . . . . . . 1 . . . . 1 . System Corruption 8 | . . . . . . 6 . . . . 2 . Parts Lost 39 | . 1 . 7 1 . . . 18 6 1 . 5 Power 8 | . . . 1 . . . . 5 2 . . . Propulsion 5 | . . . 2 . . . . 3 . . . . Utility 8 | . . . 1 1 . . . 4 1 . . 1 Weapon 18 | . 1 . 3 . . . . 6 3 1 . 4 Highest Loss Streak 9 | . 1 . 4 1 . . . 9 5 1 . 3 To Critical Strikes 3 | . . . 2 . . . . . 1 . . . Average Backups 21 | 5 9 16 22 24 13 22 24 24 24 24 24 24 Power . | . 1 2 2 1 1 1 . . . . . . Propulsion 4 | 3 4 5 6 6 2 4 5 3 2 2 3 3 Utility 8 | . . 3 6 8 5 13 13 11 12 11 10 10 Weapon 6 | 1 3 5 5 6 3 4 5 7 7 9 9 8 Tool/Special . | . . . . . . . . . . . . . Unused Backups 50 | . 1 . 16 1 9 . 2 . . 4 1 16 Power 6 | . 1 . 1 . 3 . . . . . . 1 Propulsion 16 | . . . 6 . 2 . . . . 3 . 5 Utility 14 | . . . 2 . 2 . 1 . . 1 1 7 Weapon 14 | . . . 7 1 2 . 1 . . . . 3 Tool/Special . | . . . . . . . . . . . . . Average Slot Usage (%) 95 | . 97 100 97 99 99 100 78 95 98 96 99 99 Engine 7 | . 14 2 8 10 . . 3 4 10 15 15 7 Core 4 | . . 11 2 . 11 11 5 8 3 . . . Treads 11 | . . . 19 22 22 22 18 14 . . . . Leg 7 | . 28 28 2 . . . . . 15 15 15 14 Device 12 | . 14 14 2 2 12 11 9 15 16 19 20 17 Storage 8 | . 14 14 11 11 6 11 9 7 7 7 7 7 Processor 2 | . . . . . . . 8 6 7 1 . . Hackware 1 | . . . 10 8 . . . . . . . . Protection 8 | . . . 8 10 14 11 9 6 5 8 8 11 Energy Gun 8 | . 18 14 3 8 . . . 1 14 15 21 20 Ballistic Gun 18 | . 6 14 27 24 29 33 15 26 13 11 6 8 Peak Build Rating 83 | 7 9 13 23 28 42 47 77 73 74 75 78 83 Average Rating 47 | 5 7 11 18 23 26 42 66 62 71 68 69 76 On Entrance 38 | . 7 9 12 23 23 42 42 55 73 71 69 69 Naked Turns . | . . . . . . . . . . . . . Heaviest Build 135 | 13 50 50 104 105 105 105 108 135 123 127 127 128 Greatest Support 72 | 20 20 20 45 42 44 44 44 72 72 72 72 72 Greatest Overweight (x) 5 | . 2 2 5 2 2 2 2 4 1 1 1 3 Average Overweight (x) 1 | . . 2 1 2 . 2 2 1 1 1 1 1 Largest Inventory Capacity 25 | 8 20 20 25 25 25 25 25 25 25 25 25 25 Average Capacity 22 | 7 13 20 23 25 16 25 25 25 25 25 25 25 Most Carried 25 | 8 13 20 25 25 25 25 25 25 25 25 25 25 Average Carried 21 | 5 9 16 22 24 14 25 24 24 24 24 24 24 Final Capacity 25 | 8 20 20 25 25 25 25 25 25 25 25 25 25 Final Carried 25 | 6 13 17 25 25 25 25 25 23 25 23 24 22 Class Distribution -------------------- 57% | Scavenger-Tank 25% | Skirmisher 8% | Mutant 5% | Scavenger-Mutant Dominant Class ---------------- Mutant | -10/Materials Scavenger-Mutant | -10/Mines Scavenger-Tank | -9/Materials Scavenger-Tank | -9/Mines Scavenger-Tank | -9/Exiles Scavenger-Tank | -8/Mines Skirmisher | -8/Materials Skirmisher | -7/Factory Scavenger-Tank | -7/Lower Caves Scavenger-Tank | -7/Lower Caves Scavenger-Tank | -7/Zion Scavenger-Tank | -7/Deep Caves Resources | -11 -10 -10 -9 -9 -9 -8 -8 -7 -7 -7 -7 -7 ----------- Run | Yrd Mat Min Mat Min Exi Min Mat Fac Low Low Zio Dee Matter Collected 7702 | 270 101 55 568 333 745 . 1797 2328 731 241 157 376 Remotely . | . . . . . . . . . . . . . Salvage Created 9683 | 123 654 118 1016 252 171 . 2579 3088 718 268 . 696 Parts 478 | 12 33 8 66 7 7 . 130 149 22 14 . 30 Haulers Intercepted 12 | . 1 . 4 . . . 5 2 . . . . Recyclers Shooed 2 | . 1 . . . . . 1 . . . . . Parts Field Recycled . | . . . . . . . . . . . . . Retrieved Matter . | . . . . . . . . . . . . . Parts Self-Destructed 23 | . . . . . . . . . 12 11 . . Prevented 2 | . . . . . . . . . 1 1 . . Kills | -11 -10 -10 -9 -9 -9 -8 -8 -7 -7 -7 -7 -7 ------- Run | Yrd Mat Min Mat Min Exi Min Mat Fac Low Low Zio Dee Combat Hostiles Destroyed 188 | . 13 3 25 16 4 . 41 52 17 8 . 9 Guns 173 | . 13 3 25 16 . . 41 49 11 8 . 7 AOE 13 | . . . . . 4 . . 3 6 . . . Classes Destroyed 21 | 1 5 . 2 1 1 . 4 4 . 1 . 2 Worker 8 | . 1 1 1 . . . 3 2 . . . . Builder 5 | . . . . . . . 1 4 . . . . Tunneler 5 | 5 . . . . . . . . . . . . Hauler 12 | . 1 . 4 . . . 5 2 . . . . Recycler 4 | . . . . . . . . 4 . . . . Mechanic 1 | . . . . . . . . 1 . . . . Operator 2 | . . . . . . . 2 . . . . . Turret 1 | . . . . . 1 . . . . . . . Watcher 10 | . 3 . 2 . . . 5 . . . . . Swarmer 38 | . 2 1 13 4 . . 3 9 2 4 . . Grunt 81 | . 11 2 5 1 . . 27 27 5 3 . . Brawler 4 | . . . 1 . . . . 2 1 . . . Duelist 6 | . . . . . . . 1 3 2 . . . Protector 1 | . . . . . . . . 1 . . . . Sentry 18 | . . . 6 . . . 8 3 1 . . . Hunter 3 | . . . . . . . 2 1 . . . . Programmer 6 | . . . . . . . . 6 . . . . Enhanced Grunt 1 | . . . . . . . . . . . . 1 Z-Light 4 | . . . . . . . . . . . . 4 Master Thief 1 | . . . . . . . . . . 1 . . Assembled 17 | . . . . 11 4 . . . . . . 2 Golem 2 | . . . . . . . . . . . . 2 Thug 5 | . . . . . . . . . 5 . . . Savage 1 | . . . . . . . . . 1 . . . Best Kill Streak 10 | 4 2 2 10 10 4 . 9 7 6 3 . 4 Combat Bots Only 10 | . 2 1 10 10 4 . 7 5 6 3 . 4 Max Kills in Single Turn 3 | 1 1 1 2 1 2 . 2 3 2 1 . 1 Gunslinging 1 | . . . 1 . . . . 1 . . . . Exploded 2 | . . . . . 2 . . 2 2 . . . Melee . | . . . . . . . . . . . . . Uniques/NPCs Destroyed 1 | . . . . . . . . . . . . 1 Z-Imprinter (-7/Deep Caves) Combat | -11 -10 -10 -9 -9 -9 -8 -8 -7 -7 -7 -7 -7 -------- Run | Yrd Mat Min Mat Min Exi Min Mat Fac Low Low Zio Dee Hostile Shots Fired 790 | . 62 39 143 52 14 . 93 264 57 36 . 30 Missed 200 | . 19 6 30 17 3 . 25 78 10 8 . 4 Hits 590 | . 43 33 113 35 11 . 68 186 47 28 . 26 Melee 38 | . . . 4 10 . . . 14 7 3 . . Projectile 552 | . 43 33 109 25 11 . 68 172 40 25 . 26 AOE 1 | . . . . 1 . . . . . . . . Critical Strikes 19 | . . . 6 1 3 . . 3 6 . . . Part Disruptions 1 | . . . . . . . 1 . . . . . Damage Taken 9673 | . 483 345 1323 582 228 . 1043 2950 1170 394 . 1155 Core 1284 | . 125 55 261 63 . . 67 269 154 64 . 226 Absorbed by Shields . | . . . . . . . . . . . . . Regen/Repaired (Parts) 170 | . . . . . . . . . . . 170 . Core Remaining (%) 58 | 100 . 28 . . . 19 87 . . . . . Volleys Fired 614 | 13 65 15 82 35 33 . 116 177 27 16 2 33 Largest 4 | 2 2 2 3 3 3 . 4 4 4 4 4 4 Hottest 233 | 90 90 85 108 99 69 . 80 138 194 181 233 215 Shots Fired 1541 | 26 122 30 241 105 53 . 160 572 67 57 5 103 Gun 1508 | 26 122 30 239 105 31 . 160 570 60 57 5 103 Cannon 2 | . . . 2 . . . . . . . . . Launcher 31 | . . . . . 22 . . 2 7 . . . Special . | . . . . . . . . . . . . . Kinetic 1193 | . 17 15 230 92 31 . 160 555 28 25 1 39 Thermal 219 | 13 86 15 11 13 . . . . 16 16 3 46 Explosive 31 | . . . . . 22 . . 2 7 . . . Electromagnetic 98 | 13 19 . . . . . . 15 16 16 1 18 Robot Hit Streak 15 | 5 8 7 11 8 12 . 11 15 7 10 . 10 Robot Miss Streak 11 | 4 4 7 6 4 2 . 7 11 3 6 . 5 Penetration Max 2 | . . . . . . . . 2 . . . . Secondary Targets 28 | . 1 1 7 3 . . 1 9 . 3 . 3 Max Gunslinging Chain 1 | . 1 1 1 1 . . 1 1 . 1 . 1 Shots Hit Robots 851 | 13 71 14 136 56 30 . 113 296 37 32 . 53 Core Hits 467 | 5 31 9 55 31 24 . 94 128 44 19 . 27 Critical Kills 12 | . . . 2 1 . . 1 6 2 . . . Critical Parts Destroyed 17 | . . . . . . . . 16 1 . . . Critical Strikes 36 | . 4 . 2 1 . . 1 22 4 1 . 1 Burn 4 | . 3 . . . . . . . . 1 . . Destroy 30 | . . . 2 1 . . 1 22 4 . . . Corrupt 2 | . 1 . . . . . . . . . . 1 Melee Attacks 8 | . . . . . 8 . . . . . . . Impact . | . . . . . . . . . . . . . Slashing . | . . . . . . . . . . . . . Piercing . | . . . . . . . . . . . . . Sneak Attacks 7 | . . . . . 7 . . . . . . . Combat Hostiles . | . . . . . . . . . . . . . Follow-up Attacks . | . . . . . . . . . . . . . Damage Inflicted 19700 | 167 888 180 1372 759 936 . 4844 7035 1690 619 . 1210 Guns 17222 | 167 885 180 1360 759 356 . 4766 6288 772 619 . 1070 Cannons . | . . . . . . . . . . . . . Explosions 2456 | . . . . . 580 . 71 747 918 . . 140 Melee . | . . . . . . . . . . . . . Ramming 22 | . 3 . 12 . . . 7 . . . . . Kinetic 14038 | . 79 64 1258 605 356 . 4766 6055 265 263 . 327 Thermal 2654 | 75 644 116 102 154 . . . 449 317 209 . 588 Explosive 1756 | . . . . . 580 . . 298 878 . . . Electromagnetic 1230 | 92 162 . . . . . 71 233 230 147 . 295 Impact . | . . . . . . . . . . . . . Slashing . | . . . . . . . . . . . . . Piercing . | . . . . . . . . . . . . . Highest Corruption 28 | . 1 1 . . . 6 2 21 28 28 28 . Average Corruption 10 | . 1 1 . . . 6 2 5 24 28 10 . Corruption Purged 4 | . . . . . . . . 4 . . . . Corruption Blocked . | . . . . . . . . . . . . . Effects 207 | . 6 . . . . . 6 71 59 59 6 . Message Errors 60 | . 1 . . . . . 1 24 17 16 1 . Matter Fused 42 | . 1 . . . . . 1 11 15 11 3 . Heat Flow Errors 24 | . . . . . . . 1 7 5 11 . . Energy Discharges 19 | . . . . . . . . 5 7 6 1 . Parts Rejected 3 | . 1 . . . . . . 2 . . . . Parts Fused 3 | . . . . . . . . 2 1 . . . Data Loss (minor) 24 | . . . . . . . 2 11 8 3 . . Data Loss (major) 12 | . 1 . . . . . 1 3 3 3 1 . Misfires 6 | . 1 . . . . . . 1 . 4 . . Alerts 2 | . 1 . . . . . . . . 1 . . Weapon Failures 12 | . . . . . . . . 5 3 4 . . Overload Shots . | . . . . . . . . . . . . . Overflow Damage 257 | . . . . . . . . 220 33 . . 4 Projectiles . | . . . . . . . . . . . . . Explosions 257 | . . . . . . . . 220 33 . . 4 Melee . | . . . . . . . . . . . . . Knockbacks . | . . . . . . . . . . . . . Impact . | . . . . . . . . . . . . . Kinetic . | . . . . . . . . . . . . . Secondary . | . . . . . . . . . . . . . Self-Inflicted Damage 347 | . . . . . . . 28 96 89 . . 134 Shots 8 | . . . . . . . 2 1 3 . . 2 Rammed 3 | . . . 2 . . . 1 . . . . . Targets Rammed 6 | . 3 . 2 . . . 1 . . . . . Kicked 3 | . 3 . . . . . . . . . . . Crushed . | . . . . . . . . . . . . . Highest Temperature 507 | 270 242 239 252 318 . . 395 507 469 258 108 464 Average Temperature 110 | 118 67 106 59 127 . . 110 133 127 92 62 164 Received Heat Transfer 2488 | . 234 90 390 24 27 . 459 645 370 63 . 186 Effects 36 | . . . . 2 . . 4 18 3 . . 9 Shutdowns 8 | . . . . . . . 1 5 . . . 2 Energy Bleed 6 | . . . . 1 . . . 3 . . . 2 Interference 15 | . . . . . . . 2 9 2 . . 2 Short Circuit 2 | . . . . . . . . 1 1 . . . Damage (minor) 5 | . . . . 1 . . 1 . . . . 3 Siege Activations . | . . . . . . . . . . . . . Martial Activations . | . . . . . . . . . . . . . Shielding Activations . | . . . . . . . . . . . . . Robots Disrupted 1 | . . . . . . . 1 . . . . . Combat Hostiles . | . . . . . . . . . . . . . Robots Corrupted 2 | . . . . . . . . . . . . 2 Combat Hostiles 2 | . . . . . . . . . . . . 2 Parts Fried 1 | . . . . . . . 1 . . . . . Impact Corruptions . | . . . . . . . . . . . . . Robots Melted . | . . . . . . . . . . . . . Combat Hostiles . | . . . . . . . . . . . . . Parts Melted 7 | 1 4 1 . 1 . . . . . . . . Heat Transferred 5129 | 222 1918 259 259 333 . . . 300 662 444 . 732 Parts Sabotaged . | . . . . . . . . . . . . . Parts Stolen 3 | . . . . . . . . . . 3 . . Parts Stripped . | . . . . . . . . . . . . . Power Chain Reactions 4 | . . . . . . . 1 . 1 . . 2 Alert | -11 -10 -10 -9 -9 -9 -8 -8 -7 -7 -7 -7 -7 ------- Run | Yrd Mat Min Mat Min Exi Min Mat Fac Low Low Zio Dee Maximum Alert Level 4 | . . . 1 . . . 3 4 . . . . Low Security (%) 57 | 100 100 100 98 100 . 100 25 . . . . . Level 1 14 | . . . 1 . . . 37 19 . . . . Level 2 17 | . . . . . . . 19 50 . . . . Level 3 9 | . . . . . . . 17 22 . . . . Level 4 1 | . . . . . . . . 7 . . . . Level 5 . | . . . . . . . . . . . . . High Security . | . . . . . . . . . . . . . Max Security . | . . . . . . . . . . . . . Peak Influence 1212 | 5 80 77 207 90 . . 881 1212 . . . . Initial 388 | . . 1 29 43 . . . 388 . . . . Average 268 | 1 24 6 92 10 . . 385 616 . . . . Influence Increases 5238 | 25 487 170 810 188 . . 1374 1731 293 160 . . Destroy 0b10 Robot/C 3300 | . 260 120 520 160 . . 820 1020 260 140 . . Destroy 0b10 Robot/NC 250 | 25 25 5 45 . . . 80 70 . . . . Destroy Leader 746 | . 78 30 144 20 . . 210 234 10 20 . . Allied During Kill 35 | . . 15 4 8 . . . . 8 . . . Successful Hack 70 | . 32 . 21 . . . 10 7 . . . . Disable Machine 330 | . 15 . 60 . . . 135 120 . . . . Destroy Structure 177 | . 2 . 1 . . . 104 70 . . . . Partial Spotted 30 | . 15 . . . . . . 15 . . . . Lose Combat Pursuer 300 | . 60 . 15 . . . 15 195 15 . . . Influence Decreases 5238 | 25 481 99 774 301 . . 519 1377 1050 569 43 . Entered New Map 1168 | . . 5 48 70 . . . 467 448 87 43 . Time Decay 3602 | 25 471 94 626 203 . . 519 730 482 452 . . Lost Part 328 | . 10 . 60 8 . . . 180 60 10 . . Lost Ally 140 | . . . 40 20 . . . . 60 20 . . Squads Dispatched 31 | . 4 . 1 . . . 7 19 . . . . Investigation 10 | . 1 . 1 . . . 4 4 . . . . Extermination 6 | . . . . . . . . 6 . . . . Reinforcement 8 | . 3 . . . . . 1 4 . . . . Assault 4 | . . . . . . . 2 2 . . . . Garrison 3 | . . . . . . . . 3 . . . . Intercept . | . . . . . . . . . . . . . Searches Triggered . | . . . . . . . . . . . . . Construction Impeded 2 | . . . . . . . . 2 . . . . Haulers Reinforced 2 | . . . . . . . . 2 . . . . Active Scanning Responses . | . . . . . . . . . . . . . Cargo Convoy Interrupts . | . . . . . . . . . . . . . Stealth | -11 -10 -10 -9 -9 -9 -8 -8 -7 -7 -7 -7 -7 --------- Run | Yrd Mat Min Mat Min Exi Min Mat Fac Low Low Zio Dee Distress Signals 12 | . 2 . 3 . . . 3 4 . . . . Communications Jammed . | . . . . . . . . . . . . . Distress Signals . | . . . . . . . . . . . . . Times Spotted 270 | . 23 7 35 29 24 . 45 70 14 10 . 13 Peak Tracking Total 14 | . 3 3 5 14 12 . 6 6 7 3 . 4 Tactical Retreats 27 | . 4 . 1 2 8 . 1 10 1 . . . Traps | -11 -10 -10 -9 -9 -9 -8 -8 -7 -7 -7 -7 -7 ------- Run | Yrd Mat Min Mat Min Exi Min Mat Fac Low Low Zio Dee Traps Triggered 4 | . 1 . . . . . 2 1 . . . . Indirectly . | . . . . . . . . . . . . . Trap Hack Attempts . | . . . . . . . . . . . . . Triggered . | . . . . . . . . . . . . . Disarmed . | . . . . . . . . . . . . . Reprogrammed . | . . . . . . . . . . . . . Reused 1 | . . . . . 1 . . . . . . . Traps Extracted . | . . . . . . . . . . . . . Installed 4 | . . . . . 4 . . . . . . . Triggered . | . . . . . . . . . . . . . Most Traps Carried 4 | . . . . 4 4 . . . . . . . Machines | -11 -10 -10 -9 -9 -9 -8 -8 -7 -7 -7 -7 -7 ---------- Run | Yrd Mat Min Mat Min Exi Min Mat Fac Low Low Zio Dee Machines Disabled 28 | . 1 . 4 . 3 . 9 8 . . 3 . Max in Single Turn 1 | . 1 . 1 . 1 . 1 1 . . 1 . Garrison Access 1 | . . . . . . . 1 . . . . . Machines Repaired . | . . . . . . . . . . . . . Machines Dismantled 3 | . . . . . . . . . . . 3 . Machines Sabotaged . | . . . . . . . . . . . . . Overloaded Fab Kills . | . . . . . . . . . . . . . Hacking | -11 -10 -10 -9 -9 -9 -8 -8 -7 -7 -7 -7 -7 --------- Run | Yrd Mat Min Mat Min Exi Min Mat Fac Low Low Zio Dee Machines Accessed 33 | . 5 . 7 1 2 . 10 8 . . . . Terminals 22 | . 5 . 7 . . . 7 3 . . . . Fabricators 2 | . . . . . . . . 2 . . . . Repair Stations 3 | . . . . . . . 1 2 . . . . Recycling Units . | . . . . . . . . . . . . . Scanalyzers 1 | . . . . . . . 1 . . . . . Garrison Access 2 | . . . . . . . 1 1 . . . . Total Hacks 81 | . 8 . 24 1 4 . 28 16 . . . . Successful 45 | . 6 . 11 1 4 . 19 4 . . . . Failed 35 | . 2 . 12 . . . 9 12 . . . . Catastrophic 1 | . . . . . . . . 1 . . . . Database Lockouts 1 | . . . 1 . . . . . . . . . Manual 41 | . 8 . 17 . 1 . 14 . . . 1 . Terminals 57 | . 8 . 24 . . . 21 4 . . . . Fabricators 5 | . . . . . . . . 5 . . . . Repair Stations 8 | . . . . . . . 3 5 . . . . Recycling Units . | . . . . . . . . . . . . . Scanalyzers 3 | . . . . . . . 3 . . . . . Garrison Access 3 | . . . . . . . 1 2 . . . . Terminal Hacks 13 | . . . 4 1 4 . 3 1 . . . . Record 3 | . . . . . 3 . . . . . . . Part Schematic 1 | . . . 1 . . . . . . . . . Prototype ID Bank 1 | . . . . . . . 1 . . . . . Open Door 1 | . . . . 1 . . . . . . . . Branch Access Points 1 | . . . 1 . . . . . . . . . Locate Traps 1 | . . . . . . . 1 . . . . . Hauler Manifests 1 | . . . 1 . . . . . . . . . Zone Layout 3 | . . . 1 . . . 1 1 . . . . Proto ID Catalog 1 | . . . . . 1 . . . . . . . Fabricator Hacks 2 | . . . . . . . . 2 . . . . Load Schematic 1 | . . . . . . . . 1 . . . . Build 1 | . . . . . . . . 1 . . . . Repair Station Hacks 3 | . . . . . . . 2 1 . . . . Scan Component 3 | . . . . . . . 2 1 . . . . Recycling Unit Hacks . | . . . . . . . . . . . . . Scanalyzer 2 | . . . . . . . 2 . . . . . Insert Component 1 | . . . . . . . 1 . . . . . Analyze 1 | . . . . . . . 1 . . . . . Garrison Access Hacks 1 | . . . . . . . 1 . . . . . Seal Access 1 | . . . . . . . 1 . . . . . Unauthorized Hacks 24 | . 6 . 7 . . . 11 . . . . . Terminals 24 | . 6 . 7 . . . 11 . . . . . Botnet 9 | . 2 . 2 . . . 5 . . . . . Skim 15 | . 4 . 5 . . . 6 . . . . . Fabricators . | . . . . . . . . . . . . . Repair Stations . | . . . . . . . . . . . . . Recycling Units . | . . . . . . . . . . . . . Scanalyzers . | . . . . . . . . . . . . . Garrison Access . | . . . . . . . . . . . . . Data Cores Recovered 2 | . . . 1 . . . 1 . . . . . Used . | . . . . . . . . . . . . . Hacking Detections 20 | . 2 . 4 . . . 7 7 . . . . Full Trace Events 9 | . 1 . 1 . . . 3 4 . . . . Feedback Events 1 | . . . . . . . . 1 . . . . Corruption 1 | . . . . . . . . 1 . . . . Feedback Blocked . | . . . . . . . . . . . . . Robot Schematics Acquired 3 | . . . . . . . . . . . 3 . Robots Built . | . . . . . . . . . . . . . Authchips . | . . . . . . . . . . . . . Time . | . . . . . . . . . . . . . Total Robot Build Rating . | . . . . . . . . . . . . . Part Schematics Acquired 17 | . . . 1 . . . . . . . 16 . Parts Built 2 | . . . . . . . . 2 . . . . Authchips . | . . . . . . . . . . . . . Time 62 | . . . . . . . . 62 . . . . Total Part Build Rating 4 | . . . . . . . . 4 . . . . Parts Repaired . | . . . . . . . . . . . . . Time . | . . . . . . . . . . . . . Parts Recycled . | . . . . . . . . . . . . . Recycled Matter . | . . . . . . . . . . . . . Retrieved Matter . | . . . . . . . . . . . . . Retrieved Components . | . . . . . . . . . . . . . Parts Scanalyzed 1 | . . . . . . . 1 . . . . . Part Schematics Acquired . | . . . . . . . . . . . . . Parts Damaged . | . . . . . . . . . . . . . Bothacking | -11 -10 -10 -9 -9 -9 -8 -8 -7 -7 -7 -7 -7 ------------ Run | Yrd Mat Min Mat Min Exi Min Mat Fac Low Low Zio Dee Used RIF Installer . | . . . . . . . . . . . . . Robots Hacked 6 | . . . . . 6 . . . . . . . Non-combat 3 | . . . . . 3 . . . . . . . Combat 3 | . . . . . 3 . . . . . . . Robot Hacks Applied 6 | . . . . . 6 . . . . . . . parse_system 6 | . . . . . 6 . . . . . . . Relay Couplers Released . | . . . . . . . . . . . . . Fabnet Peak Effective % . | . . . . . . . . . . . . . Robots Rewired 4 | . . . . . . . . . 4 . . . Allies Hacked . | . . . . . . . . . . . . . Hacks Repelled . | . . . . . . . . . . . . . Allies | -11 -10 -10 -9 -9 -9 -8 -8 -7 -7 -7 -7 -7 -------- Run | Yrd Mat Min Mat Min Exi Min Mat Fac Low Low Zio Dee Total Allies 15 | . . 3 . 2 . . . . 4 . 6 . Largest Group 6 | . . 3 2 2 1 . . . 2 1 6 2 Highest-Rated Group 345 | . . 40 32 43 12 . . . 50 22 345 192 Highest-Rated Ally 96 | . . 16 16 31 12 . . . 32 22 96 96 Total Orders 6 | . . . . . 4 . . . . 2 . . EXPLORE 1 | . . . . . . . . . . 1 . . RETURN 5 | . . . . . 4 . . . . 1 . . Ally Attacks 152 | . . 22 15 16 41 . . . 13 3 . 42 Total Damage 2141 | . . 226 185 228 195 . . . 336 75 . 896 Kills 21 | . . 4 3 7 . . . . 2 . . 5 Allies Corrupted . | . . . . . . . . . . . . . Allies Melted . | . . . . . . . . . . . . . Intel | -11 -10 -10 -9 -9 -9 -8 -8 -7 -7 -7 -7 -7 ------- Run | Yrd Mat Min Mat Min Exi Min Mat Fac Low Low Zio Dee Active Infowar (turns) 12497 | 34 1670 858 656 . . . 3318 3231 290 622 1818 . Optics 2 | . . . . . . . . . . . 2 . Sensors 6839 | . . . . . . . 3318 3231 290 . . . Seismic 5656 | 34 1670 858 656 . . . . . . 622 1816 . Robot Analysis Total . | . . . . . . . . . . . . . Derelict Logs Recovered 5 | . . . . 2 . . . . . 2 1 . Drone Launches 15 | . . . . . 14 . . . . 1 . . Drone Recoveries 13 | . . . . . 12 . . . . 1 . . Exploration | -11 -10 -10 -9 -9 -9 -8 -8 -7 -7 -7 -7 -7 ------------- Run | Yrd Mat Min Mat Min Exi Min Mat Fac Low Low Zio Dee Turns Passed 26948 | 154 1670 858 2897 1789 4174 80 3536 3598 1247 1138 2653 3154 Spaces Moved 10062 | 88 788 306 901 524 1823 26 983 947 575 539 1305 1257 Core 13 | 13 . . . . . . . . . . . . Treads 5045 | . . . 764 524 1823 26 983 925 . . . . Legs 4992 | 75 788 306 125 . . . . 22 575 539 1305 1257 Wheels 12 | . . . 12 . . . . . . . . . Hover . | . . . . . . . . . . . . . Flight . | . . . . . . . . . . . . . Fastest Speed 50 | 50 120 260 140 312 145 305 305 190 190 190 190 190 Average Speed 232 | 109 166 260 283 312 211 305 305 259 190 190 190 235 Slowest Speed 465 | 120 260 260 400 312 312 305 305 465 190 190 190 410 Overloaded Moves . | . . . . . . . . . . . . . Propulsion Burnouts . | . . . . . . . . . . . . . Robots Hopped . | . . . . . . . . . . . . . Potential Cave-ins . | . . . . . . . . . . . . . Cave-ins Triggered . | . . . . . . . . . . . . . Exploration Rate (%) 63 | 4 95 72 72 98 79 12 88 24 62 58 91 72 Regions Visited 12 Branch Regions 8 Pre-discovered Areas 9 | . . . 2 1 1 . . . . 1 4 . Known Exits Taken 6 | . . . 1 1 . 1 1 1 1 . . . Unknown Exits Taken 6 | 1 1 1 . . 1 . . . . 1 1 . Scrap Searched 13 | . . 1 . 1 . . . . 2 5 4 . Spaces Dug 15 | . . . . . . . 8 3 . . . 4 Terrain Destroyed 280 | . . . . . 14 . 103 66 56 . . 41 Melee . | . . . . . . . . . . . . . Projectile 114 | . . . . . . . 96 9 . . . 9 AOE 159 | . . . . . 14 . 7 50 56 . . 32 Terrain Rammed . | . . . . . . . . . . . . . Walls Destroyed . | . . . . . . . . . . . . . Machines Disabled . | . . . . . . . . . . . . . Actions | -11 -10 -10 -9 -9 -9 -8 -8 -7 -7 -7 -7 -7 --------- Run | Yrd Mat Min Mat Min Exi Min Mat Fac Low Low Zio Dee Total 12890 | 119 1029 344 1112 614 2116 27 1507 1909 675 620 1419 1399 Wait 1539 | . 149 9 31 25 102 . 345 708 15 47 60 48 Move 10050 | 87 787 305 900 523 1822 25 982 946 574 538 1304 1257 Hop . | . . . . . . . . . . . . . Pick Up 215 | 12 10 7 36 7 68 . 15 23 8 8 4 17 Fast Attach 39 | 1 1 . 2 3 4 . 12 5 2 1 5 3 Attach 76 | 6 2 . 10 1 6 . 3 22 7 2 1 16 Detach 5 | . . . 1 . . . . 1 2 . . 1 Swap 85 | . 5 4 15 9 7 2 8 16 6 1 6 6 Drop 188 | . 7 4 33 11 61 . 25 11 2 7 9 18 Fire 614 | 13 65 15 82 35 33 . 116 177 27 16 2 33 Melee 8 | . . . . . 8 . . . . . . . Ram . | . . . . . . . . . . . . . Kick 3 | . 3 . . . . . . . . . . . Crush 3 | . . . 2 . . . 1 . . . . . Escape Stasis . | . . . . . . . . . . . . . Rewire 33 | . . . . . 1 . . . 32 . . . Trap 4 | . . . . . 4 . . . . . . . Miscellaneous 28 | . . . . . . . . . . . 28 . Route ------- -11/Scrapyard -10/Materials (discovered 5 exits: *Mat x3 / [*Min] / [*Sub]) -10/Mines -9/Materials (discovered 4 exits: *Mat x3 / *Min) -9/Mines (discovered 3 exits: *Mat x2 / *Exi) -9/Exiles -8/Mines -8/Materials (discovered 2 exits: *Fac x2) -7/Factory (discovered 2 exits: *Sto / *Low) -7/Lower Caves -7/Lower Caves (discovered 2 exits: [*Fac] / *Zio) -7/Zion (discovered 2 exits: [*Dee] / [*Pro]) -7/Deep Caves (discovered 1 exit: [*Pro]) History --------- Turn | Location | Event 10 | -11/Scrapyard | Discovered new exit (range 15) 155 | -11/Scrapyard | Entered Materials 304 | -10/Materials | Build established: Mutant 317 | -10/Materials | Discovered new exit (range 9) 577 | -10/Materials | Discovered new exit (range 15) 881 | -10/Materials | Discovered new exit (range 3) 1059 | -10/Materials | Discovered new exit (range 9) 1196 | -10/Materials | Discovered new exit (range 6) 1825 | -10/Materials | Entered Mines 1874 | -10/Mines | Found a damaged Exp. Sensor Array with a note attached 1879 | -10/Mines | Found Prototype Device 2068 | -10/Mines | Assisted by bots powering up and referring to "LRC-V3" 2287 | -10/Mines | Build established: Scavenger-Mutant 2635 | -10/Mines | Discovered new exit (range 11) 2650 | -10/Mines | Core integrity fell below 50% 2683 | -10/Mines | Entered Materials 2683 | -9/Materials | Accompanied by 2 allies 2683 | -9/Materials | Evolved 2 slots: Utility x1, Weapon x1 3075 | -9/Materials | Destroyed 10 combat bots 3079 | -9/Materials | Lost 3 parts (2n1w) 3352 | -9/Materials | Lost 4 parts (1p1u2w) 3745 | -9/Materials | Identified exit to Mines 3786 | -9/Materials | Learned 2 Storage zone layouts 3817 | -9/Materials | Identified exit to Materials 3846 | -9/Materials | Learned Storage trap positions 3847 | -9/Materials | Loaded intel: 20 trap records 3848 | -9/Materials | Learned location of Zion (-7) 3936 | -9/Materials | Build established: Scavenger-Tank 4054 | -9/Materials | Central database locked down 4504 | -9/Materials | Core integrity fell below 50% 5580 | -9/Materials | Entered Mines 5713 | -9/Mines | Found the Drone Emporium 5727 | -9/Mines | Identified exit to Exiles 5737 | -9/Mines | Found Prototype Device 5737 | -9/Mines | Identified Thief Drone Bay 5844 | -9/Mines | Received a Rocket Launcher from a helpful Derelict 5905 | -9/Mines | Discovered exit to Materials (range 12) 6045 | -9/Mines | Found a Scrap Suit stashed away for nefarious purposes 6380 | -9/Mines | Discovered exit to Materials (range 12) 6477 | -9/Mines | A weapon hastily lodged in a ceiling crevice suddenly fell to the ground 6705 | -9/Mines | Joined a pair of Derelicts in attacking an 0b10 outpost 6845 | -9/Mines | Assembled infested the area 6973 | -9/Mines | Core integrity fell below 20% 7006 | -9/Mines | Destroyed 10 combat bots 7309 | -9/Mines | Found a hidden stash of uninstalled traps 7352 | -9/Mines | Deemed a non-threat by the Exiles lab entrance 7369 | -9/Mines | Entered Exiles 7369 | -9/Exiles | Accompanied by 1 ally 7451 | -9/Exiles | Met 8R-AWN 7501 | -9/Exiles | Met EX-HEX 7596 | -9/Exiles | Met EX-BIN 7634 | -9/Exiles | Aligned with FarCom system 7637 | -9/Exiles | Given EX-Vault access code 7708 | -9/Exiles | Opened EX-Vault 7727 | -9/Exiles | Found PSU Rigger 7791 | -9/Exiles | Warned to stay clear of 0b10 Research branches 8143 | -9/Exiles | Met EX-DEC 8302 | -9/Exiles | Found XL Autogun Array 8309 | -9/Exiles | Found Trap Reconfigurator 9193 | -9/Exiles | Build established: Scavenger-Mutant 9263 | -9/Exiles | Visited The Gauntlet 9930 | -9/Exiles | Build established: Scavenger-Tank 10041 | -9/Exiles | Attacked by the Exiles 10180 | -9/Exiles | Lost 3 allies 10782 | -9/Exiles | Found 8R-AWN's Boregun 10786 | -9/Exiles | Found 8R-AWN's Boregun 11055 | -9/Exiles | Found AS-neutralizer No. 17b 11331 | -9/Exiles | Discovered new exit (range 12) 11543 | -9/Exiles | Stole three prototypes: Trap Reconfigurator, PSU Rigger, XL Autogun Array 11543 | -9/Exiles | Entered Mines 11577 | -8/Mines | Discovered exit to Materials (range 15) 11623 | -8/Mines | Entered Materials 11623 | -8/Materials | Evolved 2 slots: Utility x1, Weapon x1 11700 | -8/Materials | Identified Exp. Sensor Array 11983 | -8/Materials | Build established: Skirmisher 13032 | -8/Materials | Discovered new exit (range 16) 13077 | -8/Materials | Identified exit to Factory 14071 | -8/Materials | Discovered exit to Factory (range 16) 14423 | -8/Materials | First assault squad dispatched 14615 | -8/Materials | Destroyed 7 combat bots 15159 | -8/Materials | Entered Factory 15159 | -7/Factory | Evolved 2 slots: Power x1, Utility x1 15322 | -7/Factory | Garrison activated, responded to threat 15807 | -7/Factory | Fabricated Plasma Cutter? 17559 | -7/Factory | First assault squad dispatched 17769 | -7/Factory | Lost 3 parts (1p1u1w) 18133 | -7/Factory | System corruption reached 10% 18183 | -7/Factory | Lost 9 parts (1p2n3u3w) 18469 | -7/Factory | Discovered new exit (range 14) 18539 | -7/Factory | Identified exit to Storage 18615 | -7/Factory | Discovered new exit (range 14) 18704 | -7/Factory | Identified exit to Lower Caves 18757 | -7/Factory | Entered Lower Caves 19313 | -7/Lower Caves | Attacked by a faux Warlord 19334 | -7/Lower Caves | Core integrity fell below 50% 19371 | -7/Lower Caves | Lost 5 parts (2p3w) 19693 | -7/Lower Caves | Build established: Scavenger-Tank 19942 | -7/Lower Caves | Discovered new exit (range 7) 19951 | -7/Lower Caves | Identified exit to Lower Caves 20004 | -7/Lower Caves | Entered another Lower Caves area 20004 | -7/Lower Caves | Accompanied by 1 ally 20186 | -7/Lower Caves | Discovered new exit (range 25) 20260 | -7/Lower Caves | Learned Factory terminal intel 20896 | -7/Lower Caves | Spotted SI-UVI(f) 20897 | -7/Lower Caves | Encountered a Master Thief 20897 | -7/Lower Caves | Spotted Y2-FAC(f) 20897 | -7/Lower Caves | Spotted 7B-8OF(f) 20897 | -7/Lower Caves | Trap Reconfigurator stolen by Master Thief 20898 | -7/Lower Caves | Encountered a Master Thief 20898 | -7/Lower Caves | Encountered a Master Thief 20900 | -7/Lower Caves | PSU Rigger stolen by Master Thief 20900 | -7/Lower Caves | Destroyed SI-UVI(f) 20900 | -7/Lower Caves | Broken Exp. Sensor Array stolen by Master Thief 21117 | -7/Lower Caves | Discovered new exit (range 11) 21142 | -7/Lower Caves | Entered Zion 21201 | -7/Zion | System corruption cleaned by Quarantine Array 21283 | -7/Zion | Given A8's code to call for help 21387 | -7/Zion | Given the Hacking Drone Bay 21387 | -7/Zion | Found Prototype Device 21398 | -7/Zion | Discovered new exit (range 10) 21571 | -7/Zion | Learned location of Recycling (-7) 21638 | -7/Zion | Learned location of Storage (-7) 21942 | -7/Zion | Met Imprinter 22734 | -7/Zion | Imprinted 22736 | -7/Zion | Declared Zion's savior 22968 | -7/Zion | Found Prototype Processor 22968 | -7/Zion | Identified Exp. Armor Integrity Analyzer 22972 | -7/Zion | Found Prototype Processor 22972 | -7/Zion | Identified Exp. Target Analyzer 22976 | -7/Zion | Found Prototype Processor 22976 | -7/Zion | Identified Exp. Terrain Scan Processor 22982 | -7/Zion | Found Prototype Processor 22982 | -7/Zion | Identified Spectral Analyzer 23120 | -7/Zion | System corruption cleaned by Quarantine Array 23643 | -7/Zion | Enhanced Grunt warped into view, answering call for help 23645 | -7/Zion | Enhanced Grunt warped into view, answering call for help 23771 | -7/Zion | Discovered new exit (range 3) 23771 | -7/Zion | Saw the warning signs outside the Deep Caves entrance 23795 | -7/Zion | Entered Deep Caves 23795 | -7/Deep Caves | Accompanied by 6 allies 24200 | -7/Deep Caves | Attacked by Z-Imprinter 24211 | -7/Deep Caves | Destroyed Z-Imprinter 24256 | -7/Deep Caves | Found Prototype Device 24257 | -7/Deep Caves | Identified Zio. Metafield Generator 24264 | -7/Deep Caves | Found Prototype Protection 24265 | -7/Deep Caves | Identified Zio. Weapon Casing 24368 | -7/Deep Caves | Z-Facility disabled 26190 | -7/Deep Caves | Spotted AG-84355 26214 | -7/Deep Caves | Core integrity fell below 20% 26218 | -7/Deep Caves | Destroyed AG-84355 26289 | -7/Deep Caves | Discovered new exit (range 6) 26906 | -7/Deep Caves | Spotted AG-35641 26949 | -7/Deep Caves | Destroyed by AG-35641 with Assembled Focal Cannon Last Messages --------------- 26214_ AG-84355 GOLEM Unit beginning Prototype Reactor integration. 26214_ Prc. Shock Rifle destroyed. 26218_ AG-84355 system terminally corrupted. 26223_ GOLEM Unit springs to life. 26224_ AG-33759 GOLEM Unit beginning Prototype Leg integration. 26226_ Acquired 8 matter. 26233_ AG-33759 system terminally corrupted. 26289_ EXIT=FOUND 26533_ Acquired Zio. Light DM Reactor. 26553_ Acquired Zio. Light Carapace. 26560_ Acquired 30 matter. 26831_ Dropped Autogun. 26909_ Prc. Shock Rifle destroyed. 26910_ AG-35641: "DSI9AT1D G8OHIBQ29FWG 26R186 QD12WHW8W33 TDK1 81FTS" 26916_ Zio. Light Carapace destroyed. 26945_ Chain reaction triggered in Prototype Reactor. 26945_ Destroyed Carbon-fiber Leg. 26945_ 58-LL2(g) destroyed. 26946_ AG-35641 GOLEM Unit beginning Prototype Reactor integration. 26946_ Lightning Gun destroyed. Map ----- +----------------------------------------------------+ | | | | | | | | | | | | | ?????????????????????????????????????????????????? | | ?????????????????????????????????????????????????? | | ?????????????????????????????????????????????????? | | ?????????????????????????????????????????????????? | | ????????????????????#????????????????????????????? | | ?????????????????#?? ??????????####??????????????# | | ?????????????? # ? ?????????## ##???????????## | | ???????????? # ??##?????# #???????????# | | ?????????? # ?? #?????# #??????###### | | ?????????? ?? #?????# ##?????# | | ?????????"" ?? #??????# #?????# ##### | | ????????? ## #???????# ####### #???? | | ????????" # #???????# #???? | | ????????" ???????## #########???? | | ????????# ?????????# #???????????? | | ?????????" [ ????????## #???????????# | | ?????????" ####?????# #########??## | | ?????????" ;###???# #??# | | ?????????" h #;;;; #???# #??# | | ?????????" = ;@; #???## ####### #### | | ????????# #;;G;;;#???####????## ## | | ????????# ; #?????????### | | ????????# = ;;;#???####### | | ????????# % ;#;#??# | | ????????# ! = ##??# | | ????????# h = ###???# #### | | ????????# ##????# #??### ## | | ????????# #????# #????######## | | ????????? ! = #????# #??### # <## | | ????????? ! = s #????# #??# ## | | ?????????? ! / #????# #??# #???# | | ?????????? #????# #??## ###???# | | ??????????? #????# #?### ####??# | | ??????????? / / #????# ### ##?# | | ??????????? / / ##???# ## #?? | | ?????????? /[ / / #???# #?? | | ?????????? #???# ### | | ????????? [[ ! #???## ### | | ????????? ###### ##?# | | ????????? #??## | | ????????""" [ [ #???# | | ????????" ] #???? | | ?????????" ######### ! ##???? | | ????????" #???????#! ##???? | +----------------------------------------------------+ Best States ------------- Heat Dissipation 86 Energy Generation 38 Energy Capacity 350 Matter Stores 300 Matter Capacity 300 Sight Range 16 Robot Scan Range 20 Terrain Scan Density 10 Additional Mass Support 12 Armor Coverage 1025 Resistance: EM 20 Evasion (%) 55 Armor Integrity Analysis 50 Recoil Reduction 2 Offensive Hacking 10 Item Schematics ----------------- Plasma Cutter | -9/Materials | Hacked Plasma Cannon | -7/Zion | Archive Imp. Core Shielding | -7/Zion | Archive Gatling Laser | -7/Zion | Archive IFF Parser | -7/Zion | Archive Chainsword | -7/Zion | Archive Arm. Leg | -7/Zion | Archive Energy Filter | -7/Zion | Archive Mass Driver | -7/Zion | Archive Imp. Component Analysis Suite | -7/Zion | Archive Imp. Medium Armor Plating | -7/Zion | Archive Imp. Hardlight Generator | -7/Zion | Archive Imp. Field Recycling Unit | -7/Zion | Archive Enh. Optical Array | -7/Zion | Archive Flak Gun | -7/Zion | Archive Adv. Heat Sink | -7/Zion | Archive HERF Cannon | -7/Zion | Archive Robot Schematics ------------------ L-31 Rogue | -7/Zion | Archive S-27 Virus | -7/Zion | Archive G-47 Trooper | -7/Zion | Archive Fabricated ------------ Plasma Cutter | x2 | -7/Factory Repaired ---------- Nothing Alien Tech Used ----------------- None Achievements -------------- None Challenges ------------ None Game ------ Seed MinesnifferChromaticPower Manual? 0 Play Time 02:04:02 Cumulative 195.2 hours Start 2025.10.04 @ 13:31:27 End 2025.10.05 @ 15:07:57 Sessions 7 Manual Loads 0 Difficulty Rogue Special Mode None Game No. 265 Rogue 265 Adventurer 0 Explorer 0 Win Type - Total 3 Types 2/0/0/1/0/0/0/0/0/0 Lore% 73 Gallery% 73 Achievement% 62 Wizard Run 0 Options --------- Layout 0 ASCII 0 Keyboard 0 Movement Mouse Keybinds 0 Fullscreen 1 Font 16/SmallcapsGlow Map View 75x55 Zoom Use 0% Tactical HUD 1 Map Filters NONE Filters NONE Steam 1 RUN: d6275dbf-5aeb-4779-b1a1-452015a5992b